bitfinex-derivatives/quotes_BTCF0:USTF0_20251219
["timestamp","ask_amount","ask_price","bid_price","bid_amount"]
[1766130923347,0.00017052,87989.0,87977.0,0.0113738]
[1766130924150,2e-08,87989.0,87971.0,0.00017052]
[1766130924943,2e-08,87989.0,87985.0,0.0113729]
[1766130925343,0.06096728,88011.0,87992.0,0.0113719]
[1766130925554,0.06096728,88013.0,87992.0,0.0113719]
[1766130925751,0.0113698,88009.0,87988.0,0.0113724]
[1766130926356,0.29108146,88010.0,87991.0,0.0113721]
[1766130926357,0.00017052,88007.0,87991.0,0.0113721]
[1766130928456,0.00017052,88007.0,87990.0,0.00017052]
[1766130929656,0.0113705,88004.0,87990.0,0.00017052]
[1766130929855,0.00017052,88007.0,87990.0,0.00017052]
[1766130931455,0.00017052,88007.0,87990.0,0.29110155]
[1766130931849,0.00017052,88007.0,87991.0,0.0113721]
[1766130932456,0.00017052,88007.0,87990.0,0.00017052]
[1766130932658,0.00017052,88007.0,87990.0,0.29110155]
[1766130932951,0.00017052,88007.0,87997.0,0.29093103]
[1766130933963,5.2e-07,88007.0,87997.0,0.29093103]
[1766130934158,0.00227228,88018.0,87997.0,0.29093103]
[1766130934362,0.00227228,88018.0,88000.0,0.29093103]
[1766130935068,0.0113691,88015.0,88000.0,0.29093103]
[1766130935458,0.0113694,88013.0,88000.0,0.29093103]
[1766130936362,0.0113691,88015.0,88000.0,0.29093103]
[1766130936765,0.0113694,88012.0,88000.0,0.29093103]
[1766130938174,0.00017,88016.0,87990.0,0.00017052]
[1766130938464,0.00017,88016.0,87990.0,0.29110155]
[1766130938867,0.00017,88016.0,88000.0,0.29093103]
[1766130939071,0.011369,88015.0,88000.0,0.29093103]
[1766130939471,0.011369,88015.0,87996.0,0.0113714]
[1766130939672,0.011369,88015.0,88000.0,0.29093103]
[1766130940175,0.09059536,88022.0,87990.0,0.00017052]
[1766130940176,0.29093103,88030.0,88005.0,0.29093103]
[1766130940467,0.29093103,88030.0,88000.0,0.29093103]
[1766130940662,0.011369,88016.0,88000.0,0.29093103]
[1766130941470,0.29093103,88030.0,88001.0,0.0113708]
[1766130941667,0.29093103,88020.0,87994.0,0.0113716]
[1766130942066,0.29093103,88020.0,88000.0,0.29093103]
[1766130943271,0.0113691,88015.0,88000.0,0.29093103]
[1766130943463,0.0113691,88015.0,87994.0,0.0113716]
[1766130944771,0.0113694,88013.0,87994.0,0.0113716]
[1766130945073,0.29093103,88020.0,87996.0,0.0113715]
[1766130945074,0.0113688,88017.0,87996.0,0.0113715]
[1766130945270,0.29093103,88020.0,87996.0,0.0113715]
[1766130945271,0.0113691,88015.0,87996.0,0.0113715]
[1766130945772,0.0113704,88005.0,87990.0,0.00017052]
[1766130946161,0.0113707,88002.0,87990.0,0.00017052]
[1766130946968,0.0113703,88006.0,87990.0,0.00017052]
[1766130948876,0.0113712,87998.0,87970.0,0.03060339]
[1766130949168,0.29093103,87990.0,87965.0,0.03060339]
[1766130949467,0.29093103,87990.0,87962.0,0.0113758]
[1766130949468,0.011373,87985.0,87962.0,0.0113758]
[1766130949770,0.011373,87985.0,87960.0,0.33181705]
[1766130949771,0.00017052,87982.0,87965.0,0.00017052]
[1766130950368,0.00017052,87982.0,87978.0,0.00227331]
[1766130951867,0.00017052,87982.0,87965.0,0.00017052]
[1766130953770,0.0113712,87999.0,87977.0,0.0113739]
[1766130954072,0.0113712,87999.0,87980.0,0.29093103]
[1766130954277,0.0113712,87999.0,87977.0,0.0113739]
[1766130954570,0.0113712,87999.0,87980.0,0.29093103]
[1766130954774,0.0113716,87996.0,87981.0,0.00017052]
[1766130955264,0.011372,87993.0,87981.0,0.00017052]
[1766130955464,0.29093103,87991.0,87981.0,5.2e-07]
[1766130956172,0.0113723,87990.0,87981.0,5.2e-07]
[1766130956372,0.29093103,87991.0,87981.0,5.2e-07]
[1766130956574,0.0113718,87994.0,87981.0,5.2e-07]
[1766130956773,0.29093103,87991.0,87981.0,5.2e-07]
[1766130956974,0.0113718,87994.0,87981.0,5.2e-07]
[1766130957573,0.00017,87995.0,87981.0,5.2e-07]
[1766130957878,0.0113722,87991.0,87981.0,5.2e-07]
[1766130961371,0.0113718,87994.0,87981.0,5.2e-07]
[1766130961680,0.00017,87995.0,87981.0,5.2e-07]
[1766130962978,0.00017,87995.0,87982.0,0.0113732]
[1766130963276,0.00017,87995.0,87981.0,5.2e-07]
[1766130963277,0.00017,87995.0,87985.0,0.0113729]
[1766130963873,0.09083528,88005.0,87988.0,0.0113725]
[1766130964173,0.30230083,88010.0,87981.0,5.2e-07]
[1766130964676,0.30230083,88010.0,87990.0,0.0113722]
[1766130964972,0.29093103,88010.0,87990.0,0.29093103]
[1766130965170,0.29093103,88010.0,87992.0,0.0113719]
[1766130965171,0.09297206,88010.0,87992.0,0.0113719]
[1766130965372,0.48863103,88020.0,87992.0,0.0113719]
[1766130965780,0.29093103,88010.0,87992.0,0.0113719]
[1766130965979,0.0113691,88015.0,87990.0,0.29093103]
[1766130966287,0.00227228,88018.0,87981.0,5.2e-07]
[1766130966288,0.00227228,88018.0,88004.0,0.0113704]
[1766130966475,0.00227228,88018.0,88002.0,0.00017052]
[1766130966476,8e-08,88018.0,88002.0,0.00017052]
[1766130966978,8e-08,88018.0,88009.0,0.0113698]
[1766130968680,8e-08,88018.0,88008.0,0.29093103]
[1766130968884,8e-08,88024.0,88018.0,0.0113686]
[1766130969182,0.0113651,88046.0,88025.0,0.0113676]
[1766130969485,0.0113651,88046.0,88027.0,0.00017041]
[1766130969692,0.29093103,88040.0,88027.0,0.00017041]
[1766130969883,0.0113655,88043.0,88027.0,0.00017041]
[1766130970191,0.29093103,88040.0,88027.0,4.1e-07]
[1766130971285,0.0113664,88036.0,88027.0,4.1e-07]
[1766130974304,0.00016966,88042.0,88027.0,4.1e-07]
[1766130974474,0.29075558,88040.0,88027.0,4.1e-07]
[1766130974787,0.0113673,88029.0,88027.0,4.1e-07]
[1766130975578,0.0113673,88029.0,87978.0,0.06132903]
[1766130975890,0.0113673,88029.0,87960.0,0.30313167]
[1766130975891,0.29075558,88020.0,87987.0,0.0113726]
[1766130976485,0.29075558,88020.0,87983.0,0.0113731]
[1766130976486,0.0113702,88007.0,87983.0,0.0113731]
[1766130976680,0.0113702,88007.0,87990.0,0.00017041]
[1766130977083,0.00017007,88008.0,87990.0,0.00017041]
[1766130979296,0.00017007,88008.0,87992.0,0.0113719]
[1766130979984,0.00017007,88008.0,87995.0,0.0113716]
[1766130980894,0.00017007,88008.0,87990.0,0.29092599]
[1766130981193,0.29075558,88040.0,87998.0,0.0113712]
[1766130981194,0.0113682,88022.0,87998.0,0.0113712]
[1766130981595,0.0113689,88016.0,87998.0,0.0113712]
[1766130981899,0.09013169,88022.0,87994.0,0.0113717]
[1766130982101,0.29075558,88030.0,87999.0,0.00017041]
[1766130982992,0.0113692,88014.0,87999.0,0.00017041]
[1766130985002,0.0113696,88011.0,87999.0,0.00017041]
[1766130985303,0.01137,88008.0,87999.0,0.00017041]
[1766130985505,0.01137,88008.0,87978.0,0.00227331]
[1766130985506,0.011371,88000.0,87982.0,0.0113733]
[1766130985798,0.0113711,88000.0,87978.0,0.00227331]
[1766130986597,0.00017041,87998.0,87980.0,0.00017041]
[1766130987192,0.00017041,87998.0,87981.0,0.0113733]
[1766130988299,0.00017041,87998.0,87980.0,0.00017041]
[1766130988300,0.00017041,87998.0,87980.0,0.29092599]
[1766130988501,0.0113704,88005.0,87980.0,0.29092599]
[1766130988502,0.0113704,88005.0,87985.0,0.0113728]
[1766130988802,0.0113704,88005.0,87980.0,0.29092599]
[1766130988803,0.0113704,88005.0,87984.0,0.0113729]
[1766130989795,0.0113709,88001.0,87980.0,0.30229939]
[1766130990598,0.0113709,88001.0,87980.0,0.01154381]
[1766130991201,0.0113709,88001.0,87982.0,0.0113732]
[1766130991886,0.0113704,88005.0,87985.0,0.0113728]
[1766130992091,0.29094439,88020.0,87987.0,0.0113725]
[1766130992405,0.06096728,88035.0,88000.0,0.29094439]
[1766130992704,0.011368,88023.0,88003.0,0.00017041]
[1766130993001,0.011368,88023.0,88004.0,0.0113704]
[1766130993399,0.0113676,88027.0,88007.0,0.01137]
[1766130993706,0.0113674,88028.0,88007.0,0.01137]
[1766130994203,0.0113678,88025.0,88006.0,0.0113702]
[1766130995403,0.0113673,88029.0,88006.0,0.0113702]
[1766130996510,0.0113673,88029.0,88009.0,0.0113698]
[1766130996695,0.09017894,88038.0,88003.0,0.00017041]
[1766130996897,0.06096728,88042.0,88009.0,0.0113697]
[1766130997298,0.0113677,88026.0,88005.0,0.0113703]
[1766130998296,0.0113677,88026.0,88003.0,0.00017041]
[1766130998297,0.06096728,88051.0,88003.0,0.00017041]
[1766130998500,0.011368,88023.0,88003.0,0.00017041]
[1766130999196,0.011368,88023.0,88004.0,0.0113704]
[1766130999594,0.011368,88023.0,88003.0,0.00017041]
[1766130999795,0.0113684,88020.0,88003.0,0.00017041]
[1766130999999,0.0113694,88013.0,88003.0,0.00017041]
[1766131000807,0.42649837,88040.0,88003.0,0.00017041]
[1766131001408,0.0113685,88019.0,88003.0,0.00017041]
[1766131002007,0.42649837,88040.0,88003.0,0.00017041]
[1766131002008,0.0113681,88023.0,88003.0,0.00017041]
[1766131002306,0.0113681,88023.0,88004.0,0.0113704]
[1766131002512,0.0113675,88027.0,88004.0,0.0113704]
[1766131002907,0.0113679,88024.0,88004.0,0.0113704]
[1766131004411,0.06096728,88046.0,88011.0,0.0113695]
[1766131004613,0.0113665,88035.0,88020.0,0.00017041]
[1766131005018,0.0113669,88032.0,88020.0,0.00017041]
[1766131005709,0.0113673,88029.0,88020.0,0.00017041]
[1766131006308,0.06096728,88049.0,88020.0,0.00017041]
[1766131006611,0.0113645,88051.0,88028.0,0.0113673]
[1766131006813,0.06323852,88058.0,88031.0,0.0113669]
[1766131006814,0.0113639,88055.0,88031.0,0.0113669]
[1766131007511,0.10294336,88055.0,88031.0,0.0113669]
[1766131007916,0.0113639,88055.0,88031.0,0.0113669]
[1766131009618,0.00227124,88058.0,88030.0,0.42649837]
[1766131009818,0.00227124,88058.0,88041.0,0.0113656]
[1766131010013,0.00227124,88058.0,88041.0,0.01153601]
[1766131010518,0.00227124,88058.0,88041.0,0.00017041]
[1766131010703,0.0113637,88057.0,88041.0,0.00017041]
[1766131012214,0.00227124,88058.0,88041.0,0.00017041]
[1766131012410,0.00227124,88058.0,88042.0,0.0113655]
[1766131012820,0.00227124,88058.0,88041.0,0.00017041]
[1766131014124,0.00227124,88058.0,88041.0,0.01153601]
[1766131014917,1.24e-06,88058.0,88047.0,0.0113648]
[1766131015425,1.24e-06,88058.0,88043.0,0.0113654]
[1766131016614,1.24e-06,88058.0,88041.0,0.00017041]
[1766131016810,0.01136474,88058.0,88041.0,0.00017041]
[1766131017007,1.24e-06,88058.0,88041.0,0.00017041]
[1766131018421,0.011364,88055.0,88041.0,0.00017041]
[1766131018817,1.24e-06,88058.0,88025.0,0.0113677]
[1766131019338,0.0113656,88042.0,88022.0,0.0818]
[1766131019720,0.0113664,88036.0,88022.0,0.0818]
[1766131019923,0.0113664,88036.0,88020.0,0.00017041]
[1766131020312,0.00017041,88038.0,88020.0,0.00017041]
[1766131020921,0.0113662,88037.0,88020.0,0.00017041]
[1766131021525,0.00017041,88038.0,88020.0,0.01153871]
[1766131022025,0.00017041,88038.0,88023.0,0.0113679]
[1766131022219,1.24e-06,88058.0,88028.0,0.42649837]
[1766131022220,0.0113639,88055.0,88028.0,0.42649837]
[1766131022412,1.24e-06,88058.0,88031.0,0.0113669]
[1766131022614,0.0113636,88057.0,88034.0,0.0113665]
[1766131022815,0.011364,88054.0,88030.0,0.011367]
[1766131023124,0.0113648,88048.0,88026.0,0.0113676]
[1766131023524,0.42649837,88050.0,88020.0,0.00017041]
[1766131023920,0.0113636,88057.0,88020.0,0.00017041]
[1766131024225,0.0113636,88057.0,88020.0,0.01153871]
[1766131025131,0.0113654,88044.0,88020.0,0.01153871]
[1766131025330,0.0113636,88057.0,88020.0,0.01153871]
[1766131026329,0.011366,88039.0,88020.0,0.00017041]
[1766131028534,0.0113636,88057.0,88020.0,0.00017041]
[1766131028727,0.0113661,88038.0,88020.0,0.00017041]
[1766131032333,0.011366,88039.0,88020.0,0.00017041]
[1766131033634,0.011366,88039.0,88021.0,0.0113682]
[1766131033832,0.0113655,88042.0,88021.0,0.0113682]
[1766131034929,0.0113659,88040.0,88020.0,0.00017041]
[1766131035233,0.0113654,88044.0,88020.0,0.00017041]
[1766131035434,0.0113654,88044.0,88021.0,0.0113682]
[1766131035635,0.0113657,88041.0,88020.0,0.00017041]
[1766131036224,0.011365,88046.0,88024.0,0.0113678]
[1766131036429,1.24e-06,88058.0,88020.0,0.00017041]
[1766131036629,0.06096852,88058.0,88020.0,0.00017041]
[1766131036835,0.0113656,88042.0,88020.0,0.00017041]
[1766131037023,0.09098387,88042.0,88020.0,4.1e-07]
[1766131037221,0.0113675,88027.0,88020.0,4.1e-07]
[1766131037637,0.011367,88031.0,88020.0,4.1e-07]
[1766131039930,0.00017,88034.0,88020.0,4.1e-07]
[1766131040325,0.0115367,88034.0,88020.0,4.1e-07]
[1766131040843,0.011367,88031.0,88020.0,4.1e-07]
[1766131041025,0.0113675,88027.0,88020.0,4.1e-07]
[1766131041843,0.0113678,88025.0,88002.0,0.0113706]
[1766131042035,0.0113671,88031.0,87998.0,0.00014473]
[1766131042230,0.00017,88034.0,87998.0,0.00014473]
[1766131042538,0.0113678,88025.0,88004.0,0.0113703]
[1766131042737,0.0113678,88025.0,88006.0,0.00017041]
[1766131042933,0.00017,88034.0,88006.0,0.00017041]
[1766131043330,0.00017,88034.0,87998.0,0.00014473]
[1766131043331,0.0113692,88014.0,87998.0,0.00014473]
[1766131043535,0.0113669,88032.0,87998.0,4.73e-06]
[1766131043536,0.0113697,88010.0,87998.0,4.73e-06]
[1766131044037,0.42649837,88030.0,87998.0,4.73e-06]
[1766131044240,0.0113688,88017.0,88005.0,0.00017041]
[1766131044632,0.011369,88015.0,88005.0,0.00017041]
[1766131046024,0.000129,88016.0,88005.0,0.00017041]
[1766131047340,0.000129,88016.0,88005.0,0.01154071]
[1766131047839,0.000129,88016.0,88005.0,0.00017041]
[1766131051142,0.011369,88015.0,88005.0,0.00017041]
[1766131051338,0.000129,88016.0,87998.0,4.73e-06]
[1766131051539,0.0113704,88005.0,87998.0,4.73e-06]
[1766131051745,0.000129,88016.0,87998.0,4.73e-06]
[1766131052046,0.01137,88008.0,87998.0,4.73e-06]
[1766131054944,0.000129,88016.0,87998.0,4.73e-06]
[1766131054945,0.0113697,88010.0,87998.0,4.73e-06]
[1766131055446,0.0113692,88014.0,87998.0,4.73e-06]
[1766131056241,0.000129,88016.0,87998.0,4.73e-06]
[1766131056443,0.0113695,88011.0,87998.0,4.73e-06]
[1766131056855,0.0113691,88015.0,87998.0,4.73e-06]
[1766131057154,0.011498,88016.0,87998.0,4.73e-06]
[1766131058145,0.0113695,88012.0,87998.0,4.73e-06]
[1766131058451,0.011498,88016.0,87998.0,4.73e-06]
[1766131058658,0.000129,88016.0,87998.0,0.01137593]
[1766131058842,0.000129,88016.0,88000.0,0.29090179]
[1766131059440,0.000129,88016.0,88000.0,0.29081929]
[1766131060252,0.0113691,88015.0,88000.0,0.29081929]
[1766131060551,0.0113694,88012.0,88000.0,0.29081929]
[1766131060749,0.0113694,88012.0,87998.0,4.73e-06]
[1766131060950,0.0113694,88012.0,88000.0,0.29081929]
[1766131066048,0.011369,88015.0,88000.0,0.29081929]
[1766131067961,0.0113694,88012.0,88000.0,0.29081929]
[1766131069150,0.0114979,88016.0,88000.0,0.29081929]
[1766131069456,0.0113693,88014.0,88000.0,0.29081929]
[1766131074567,0.000129,88016.0,88000.0,0.29081929]
[1766131075266,0.000129,88016.0,87998.0,0.01137593]
[1766131075468,0.000129,88016.0,88000.0,0.29081929]
[1766131075961,0.000129,88016.0,88000.0,0.30219019]
[1766131076959,0.000129,88016.0,88006.0,0.29081929]
[1766131077161,0.000129,88016.0,88000.0,0.29081929]
[1766131079967,0.000129,88016.0,87999.0,0.011371]
[1766131080162,0.011369,88015.0,88000.0,0.29081929]
[1766131081571,0.000129,88016.0,88001.0,0.0113708]
[1766131081771,0.000129,88016.0,88006.0,0.29081929]
[1766131082472,0.011369,88015.0,88006.0,0.29081929]
[1766131083773,0.000129,88016.0,88006.0,0.29081929]
[1766131084368,0.00017041,88023.0,88006.0,0.29081929]
[1766131084564,0.00017041,88023.0,88010.0,0.29081929]
[1766131084972,0.0113685,88020.0,88010.0,0.29081929]
[1766131085172,0.0113687,88018.0,88010.0,0.29081929]
[1766131086374,0.00017041,88023.0,88010.0,0.29081929]
[1766131087077,0.0113684,88021.0,88010.0,0.29081929]
[1766131087374,0.0113686,88019.0,88010.0,0.29081929]
[1766131089070,0.00017041,88023.0,88010.0,0.29081929]
[1766131089277,0.06096728,88038.0,88013.0,0.58163858]
[1766131089278,0.0113662,88038.0,88013.0,0.58163858]
[1766131089476,0.0113662,88038.0,88028.0,0.29081929]
[1766131090064,0.0113665,88035.0,88015.0,0.0113689]
[1766131090269,0.00017041,88034.0,88025.0,0.29081929]
[1766131090577,0.00017041,88034.0,88024.0,0.29081929]
[1766131090578,0.0113668,88033.0,88024.0,0.29081929]
[1766131090774,0.00017041,88034.0,88020.0,0.29081929]
[1766131091368,0.00017041,88034.0,88024.0,0.29081929]
[1766131091568,0.00017041,88034.0,88020.0,0.29081929]
[1766131093175,4.1e-07,88034.0,88024.0,0.29081929]
[1766131095975,4.1e-07,88034.0,88016.0,0.00017041]
[1766131096173,0.01136701,88034.0,88020.0,0.29081929]
[1766131096880,0.0113671,88031.0,88020.0,0.29081929]
[1766131099074,0.0113667,88033.0,88016.0,0.01153921]
[1766131099275,0.0113667,88033.0,88020.0,0.29081929]
[1766131099474,0.0113667,88033.0,88023.0,0.29081929]
[1766131099671,4.1e-07,88034.0,88023.0,0.29081929]
[1766131100686,0.0113667,88033.0,88023.0,0.29081929]
[1766131100885,0.0113667,88033.0,88020.0,0.29081929]
[1766131101084,4.1e-07,88034.0,88016.0,0.00017041]
[1766131101388,0.0113692,88014.0,88000.0,0.29081929]
[1766131101586,0.0113696,88011.0,88000.0,0.29081929]
[1766131101974,0.0113689,88016.0,88000.0,0.29081929]
[1766131102378,0.0113693,88013.0,88000.0,0.29081929]
[1766131102782,0.0113693,88013.0,88003.0,0.29081929]
[1766131103273,0.0113693,88013.0,87999.0,0.00017041]
[1766131103274,0.0113693,88013.0,88000.0,0.29081929]
[1766131105795,0.0113693,88013.0,87999.0,0.00017041]
[1766131105996,0.0113693,88013.0,88000.0,0.29081929]
[1766131106896,0.0113693,88013.0,87991.0,0.01]
[1766131106897,0.0113728,87987.0,87978.0,0.00227331]
[1766131107095,0.29081929,87992.0,87978.0,1e-08]
[1766131107793,0.0113724,87989.0,87978.0,1e-08]
[1766131108005,0.29081929,87990.0,87978.0,1e-08]
[1766131108186,0.0113745,87973.0,87957.0,0.04088602]
[1766131108484,0.0113745,87973.0,87950.0,0.35214832]
[1766131108485,0.0113745,87973.0,87953.0,0.04088602]
[1766131108686,0.011374,87977.0,87960.0,0.29081929]
[1766131109096,0.01154452,87977.0,87960.0,0.29098981]
[1766131109506,0.0113744,87974.0,87960.0,0.29098981]
[1766131110006,0.0113744,87974.0,87960.0,0.00017052]
[1766131110413,0.0113744,87974.0,87960.0,0.29098981]
[1766131112313,0.00017052,87977.0,87960.0,0.00017052]
[1766131113501,0.00017052,87977.0,87960.0,0.29098981]
[1766131113705,0.00017052,87977.0,87967.0,0.29081929]
[1766131113706,5.2e-07,87977.0,87967.0,0.29081929]
[1766131114003,5.2e-07,87977.0,87968.0,0.0113751]
[1766131115106,0.09179057,87992.0,87972.0,0.0113745]
[1766131115309,0.0113677,88026.0,87980.0,0.29081929]
[1766131115310,0.0113712,87998.0,87980.0,0.29081929]
[1766131115613,0.0113707,88002.0,87980.0,0.30234204]
[1766131116305,0.00017052,88000.0,87982.0,0.00017052]
[1766131117199,0.0113697,88010.0,87986.0,0.0113727]
[1766131117412,0.0113697,88010.0,87990.0,0.29096854]
[1766131118514,0.00017052,88009.0,87990.0,0.29096854]
[1766131119217,0.01137,88008.0,87986.0,0.0113727]
[1766131120415,0.00017052,88009.0,87989.0,0.0113723]
[1766131121119,0.01154042,88009.0,87990.0,0.29096854]
[1766131122410,0.01154032,88009.0,87986.0,0.0113727]
[1766131124020,0.0113702,88006.0,87986.0,0.0113727]
[1766131124410,0.0113702,88006.0,87982.0,0.01154372]
[1766131125021,0.0113702,88006.0,87985.0,0.0113729]
[1766131125520,0.00017052,88009.0,87982.0,0.00017052]
[1766131127214,0.011371,88000.0,87982.0,0.00017052]
[1766131128623,0.0113699,88008.0,87982.0,2e-08]
[1766131128831,0.0113719,87993.0,87982.0,2e-08]
[1766131130123,0.00017052,88009.0,87982.0,2e-08]
[1766131130517,0.0113711,87999.0,87982.0,2e-08]
[1766131130722,0.00017052,88009.0,87989.0,0.29096854]
[1766131131030,0.00017052,88009.0,87999.0,0.29096854]
[1766131131319,5.2e-07,88009.0,87999.0,0.29096854]
[1766131131927,5.2e-07,88009.0,87991.0,0.011372]
[1766131132625,5.2e-07,88009.0,87983.0,0.0113731]
[1766131132626,0.0113704,88005.0,87983.0,0.0113731]
[1766131134827,0.0113708,88002.0,87983.0,0.0113731]
[1766131135031,5.2e-07,88009.0,87982.0,2e-08]
[1766131136114,0.011371,88001.0,87982.0,2e-08]
[1766131137524,0.0113712,87998.0,87982.0,2e-08]
[1766131138021,0.0113706,88003.0,87982.0,0.01137322]
[1766131141934,0.0113706,88003.0,87985.0,0.0113729]
[1766131142331,0.0113706,88003.0,87982.0,2e-08]
[1766131142538,0.0113702,88006.0,87986.0,0.0113726]
[1766131143126,5.2e-07,88009.0,87989.0,0.0113723]
[1766131143327,0.0113704,88005.0,87985.0,0.0113728]
[1766131144036,0.01137042,88009.0,87988.0,0.0113725]
[1766131144429,0.0113702,88006.0,87988.0,0.0113725]
[1766131144931,0.0113702,88006.0,87985.0,0.0113729]
[1766131145135,5.2e-07,88009.0,87987.0,0.0113725]
[1766131145438,5.2e-07,88009.0,87982.0,2e-08]
[1766131145439,5.2e-07,88009.0,87989.0,0.0113723]
[1766131146234,0.01137,88008.0,87989.0,0.0113723]
[1766131148139,0.0113704,88005.0,87985.0,0.0113728]
[1766131148341,0.0113707,88002.0,87982.0,2e-08]
[1766131150644,5.2e-07,88009.0,87982.0,2e-08]
[1766131150837,0.0113716,87996.0,87982.0,2e-08]
[1766131151038,5.2e-07,88009.0,87982.0,2e-08]
[1766131152944,0.0113706,88004.0,87984.0,0.0113729]
[1766131153344,0.01137,88008.0,87987.0,0.0113726]
[1766131154244,0.01137,88008.0,87989.0,0.0113723]
[1766131157245,5.2e-07,88009.0,87982.0,2e-08]
[1766131157441,5.2e-07,88009.0,87990.0,0.29090465]
[1766131157644,5.2e-07,88009.0,87989.0,0.0113724]
[1766131158649,5.2e-07,88009.0,87991.0,0.011372]
[1766131160851,0.01137,88008.0,87990.0,0.29090465]
[1766131161052,0.01137,88008.0,87988.0,0.0113725]
[1766131161752,0.01137,88008.0,87991.0,0.0113721]
[1766131162242,0.01137,88008.0,87988.0,0.0113725]
[1766131163650,5.2e-07,88009.0,87983.0,0.0113731]
[1766131163855,0.0113704,88005.0,87986.0,0.0113727]
[1766131164757,0.0113699,88008.0,87988.0,0.0113724]
[1766131166356,0.0149299,88008.0,87989.0,0.00568]
[1766131166556,0.0113703,88006.0,87989.0,0.00568]
[1766131167960,0.0113701,88007.0,87989.0,0.0170524]
[1766131168156,0.0113701,88007.0,87990.0,0.29090465]
[1766131168460,0.00356,88008.0,87989.0,0.00568]
[1766131168461,0.0113705,88004.0,87989.0,0.00568]
[1766131169748,0.0113708,88002.0,87989.0,0.00568]
[1766131170058,0.0113703,88006.0,87989.0,0.00568]
[1766131170657,0.0113706,88003.0,87989.0,0.00568]
[1766131171864,0.0113701,88007.0,87989.0,0.00568]
[1766131175971,0.00356,88008.0,87989.0,0.00568]
[1766131176468,0.00356,88008.0,87990.0,0.0113722]
[1766131177472,0.00356,88008.0,87990.0,0.30228225]
[1766131178365,0.0113702,88007.0,87989.0,0.00568]
[1766131178566,0.0113702,88007.0,87990.0,0.29091005]
[1766131179971,0.00356,88008.0,87997.0,0.29091005]
[1766131180878,0.00356,88008.0,87998.0,0.0113712]
[1766131182279,0.00356,88008.0,87997.0,0.29091005]
[1766131183379,0.00356,88008.0,87997.0,0.29659005]
[1766131186474,0.01493,88008.0,87997.0,0.00568]
[1766131187272,0.0113703,88006.0,87997.0,0.00568]
[1766131187478,0.00356,88008.0,87982.0,2e-08]
[1766131187683,0.0113711,87999.0,87983.0,0.00568]
[1766131187882,0.0113711,87999.0,87982.0,2e-08]
[1766131187883,0.0113711,87999.0,87984.0,0.00568]
[1766131188082,0.0113711,87999.0,87985.0,0.00568]
[1766131188383,0.0113707,88003.0,87985.0,0.00568]
[1766131188775,0.00356,88008.0,87990.0,0.29091005]
[1766131189176,0.0149299,88008.0,87990.0,0.29091005]
[1766131189475,0.0149299,88008.0,87990.0,0.29659005]
[1766131190280,0.00568052,88009.0,87998.0,0.29091005]
[1766131190484,0.00568052,88009.0,87990.0,0.0170521]
[1766131190485,0.00568052,88009.0,87990.0,0.30796215]
[1766131191084,0.00568052,88009.0,87992.0,0.0113719]
[1766131193185,0.0113703,88006.0,87990.0,0.00568]
[1766131193384,0.0113703,88006.0,87990.0,0.29659005]
[1766131193977,0.00568052,88009.0,87990.0,0.29659005]
[1766131194284,0.0113706,88004.0,87990.0,0.29659005]
[1766131194482,0.0113701,88007.0,87990.0,0.29659005]
[1766131194990,0.0113701,88007.0,87991.0,0.00568]
[1766131196282,0.00568052,88009.0,87991.0,0.00568]
[1766131197187,0.00568052,88009.0,87999.0,0.29091005]
[1766131197791,0.00568052,88009.0,87994.0,0.0113717]
[1766131198291,0.00568052,88009.0,87991.0,0.00568]
[1766131198486,0.01137,88008.0,87991.0,0.00568]
[1766131199890,0.0113704,88005.0,87991.0,0.00568]
[1766131200095,0.00568052,88009.0,87991.0,0.00568]
[1766131200298,0.00568052,88009.0,87982.0,2e-08]
[1766131200597,0.00568052,88009.0,87983.0,0.00568]
[1766131200782,0.0113709,88001.0,87983.0,0.00568]
[1766131201180,0.00568052,88009.0,87983.0,0.00568]
[1766131201798,0.01705042,88009.0,87988.0,0.0113725]
[1766131202097,0.0113702,88006.0,87984.0,0.011373]
[1766131202299,0.0113702,88006.0,87985.0,0.00532]
[1766131202484,0.00568052,88009.0,87985.0,0.00532]
[1766131202815,0.00568052,88009.0,87987.0,0.0113726]
[1766131203093,0.00568052,88009.0,87986.0,0.0113728]
[1766131203799,0.0113699,88008.0,87985.0,0.00532]
[1766131204499,5.2e-07,88009.0,87985.0,0.00532]
[1766131205399,5.2e-07,88009.0,87989.0,0.0113723]
[1766131206900,5.2e-07,88009.0,87992.0,0.011372]
[1766131207097,5.2e-07,88009.0,87994.0,0.0113717]
[1766131207398,5.2e-07,88009.0,87993.0,0.0052]
[1766131208388,5.2e-07,88009.0,87994.0,2.38844]
[1766131209001,5.2e-07,88009.0,87995.0,0.0113716]
[1766131209205,5.2e-07,88009.0,87996.0,0.00568]
[1766131210204,5.2e-07,88009.0,87997.0,0.0113713]
[1766131210403,5.2e-07,88009.0,88000.0,0.0113709]
[1766131210711,5.2e-07,88009.0,88003.0,0.0113705]
[1766131210902,5.2e-07,88009.0,88003.0,0.00568]
[1766131212187,5.2e-07,88009.0,88004.0,0.00568]
[1766131212493,5.2e-07,88009.0,87999.0,0.00568]
[1766131214106,5.2e-07,88009.0,88003.0,0.0113705]
[1766131214409,5.2e-07,88009.0,88004.0,0.0113703]
[1766131214593,0.57687268,88017.0,88007.0,0.01137]
[1766131214795,0.53187268,88017.0,88008.0,0.00568]
[1766131215107,0.52187268,88017.0,88008.0,0.00568]
[1766131216011,0.53324148,88017.0,88008.0,0.00568]
[1766131216801,0.0113694,88012.0,87990.0,0.0113722]
[1766131217007,0.0113694,88012.0,87992.0,0.011372]
[1766131217207,0.011369,88016.0,87992.0,0.011372]
[1766131217910,0.011369,88016.0,87995.0,0.00017052]
[1766131218309,0.0113693,88013.0,87995.0,0.00017052]
[1766131218501,0.52187268,88017.0,87995.0,0.00017052]
[1766131218697,0.0113697,88011.0,87995.0,0.00017052]
[1766131219302,0.52187268,88017.0,87995.0,0.00017052]
[1766131219493,0.0113694,88012.0,87995.0,0.00017052]
[1766131219693,0.52187268,88017.0,87995.0,0.00017052]
[1766131219895,0.0113695,88012.0,87995.0,0.00017052]
[1766131220601,0.52187268,88017.0,87995.0,0.00017052]
[1766131220794,0.52187268,88017.0,87980.0,0.0409397]
[1766131220996,0.0113699,88008.0,87980.0,0.0409397]
[1766131221199,0.00568,88007.0,87981.0,0.00128]
[1766131221602,0.52187268,88017.0,87981.0,0.00128]
[1766131221801,0.52187268,88017.0,88000.0,0.0113709]
[1766131222109,0.5220432,88017.0,87984.0,0.011373]
[1766131222294,0.5220432,88017.0,87985.0,0.00568]
[1766131222491,0.5220432,88017.0,87986.0,0.0018]
[1766131222492,0.0113705,88004.0,87986.0,0.0018]
[1766131222701,0.0113709,88001.0,87986.0,0.0018]
[1766131222913,0.00568,88004.0,87986.0,0.0018]
[1766131223108,0.00568,88004.0,87986.0,0.00197052]
[1766131223302,0.0113706,88003.0,87986.0,0.00197052]
[1766131224212,0.00568,88004.0,87986.0,0.00197052]
[1766131224909,0.0113715,87996.0,87982.0,0.0818]
[1766131225110,0.0113715,87996.0,87983.0,0.00572]